bitfinex/quotes_BTCUSD_20250324
["timestamp","ask_amount","ask_price","bid_price","bid_amount"]
[1742856414942,0.45250176,87501.0,87500.0,9.1e-07]
[1742856415104,0.245013,87495.0,87494.0,0.13484]
[1742856415306,0.45251785,87495.0,87494.0,0.24909764]
[1742856415510,0.245021,87492.0,87488.0,0.54308]
[1742856415726,0.45252585,87492.0,87491.0,0.14078893]
[1742856416102,0.45252585,87492.0,87491.0,0.00602893]
[1742856416325,0.45264923,87492.0,87491.0,0.00602893]
[1742856417228,0.45264923,87492.0,87487.0,8.5e-07]
[1742856417229,0.01643,87488.0,87487.0,8.5e-07]
[1742856417362,0.016431,87476.0,87468.0,0.13496]
[1742856417602,0.245065,87476.0,87468.0,0.13496]
[1742856417798,0.452569,87476.0,87469.0,0.13492]
[1742856418114,0.5458376,87476.0,87469.0,0.13492]
[1742856418312,0.452569,87476.0,87469.0,0.13492]
[1742856418736,0.452569,87476.0,87463.0,0.13496]
[1742856418877,0.45823285,87476.0,87463.0,0.13496]
[1742856419280,0.45823285,87476.0,87461.0,0.002]
[1742856419281,0.45723285,87476.0,87461.0,0.002]
[1742856419693,0.46023285,87476.0,87461.0,0.002]
[1742856420345,0.57449049,87476.0,87461.0,0.002]
[1742856420564,0.68112034,87476.0,87461.0,0.002]
[1742856420787,0.99099734,87476.0,87475.0,5.5e-07]
[1742856421118,1.78599334,87476.0,87475.0,5.5e-07]
[1742856421331,1.78599334,87476.0,87461.0,0.002]
[1742856421332,0.245103,87462.0,87461.0,0.002]
[1742856421538,0.45260645,87462.0,87461.0,0.002]
[1742856422132,0.22393645,87462.0,87461.0,0.002]
[1742856422340,0.22393645,87462.0,87461.0,0.11625764]
[1742856422341,0.21250345,87462.0,87461.0,0.11625764]
[1742856422657,0.21562676,87462.0,87461.0,0.25117764]
[1742856422869,0.005,87476.0,87461.0,0.25117764]
[1742856422870,0.005,87470.0,87461.0,0.49128364]
[1742856423237,0.005,87489.0,87486.0,0.228605]
[1742856423364,0.005,87489.0,87487.0,0.47782164]
[1742856423564,0.005,87489.0,87487.0,0.48925164]
[1742856423764,0.005,87494.0,87487.0,0.24921764]
[1742856424028,0.005,87494.0,87490.0,0.011429]
[1742856424191,0.011427,87507.0,87490.0,0.12568664]
[1742856424192,0.005,87498.0,87490.0,0.12568664]
[1742856424393,0.005,87498.0,87490.0,0.11654325]
[1742856424594,0.005,87498.0,87484.0,0.22861]
[1742856424595,0.228611,87485.0,87470.0,0.011432]
[1742856424794,0.005,87484.0,87481.0,0.24917764]
[1742856425240,0.005,87484.0,87481.0,0.24958833]
[1742856425442,0.005,87484.0,87481.0,0.00041069]
[1742856425443,0.01643,87482.0,87481.0,0.00041069]
[1742856425595,0.01643,87482.0,87481.0,0.13541069]
[1742856426276,0.01643,87482.0,87481.0,0.13641069]
[1742856426638,0.01643,87482.0,87481.0,0.13533069]
[1742856426957,0.01843,87482.0,87481.0,0.00041069]
[1742856427097,0.01843,87482.0,87481.0,0.13533069]
[1742856427932,0.011,87482.0,87481.0,0.13533069]
[1742856428332,0.011,87482.0,87481.0,0.00041069]
[1742856428580,0.006,87482.0,87481.0,0.11466833]
[1742856428761,0.006,87482.0,87481.0,0.24946833]
[1742856429154,0.006,87482.0,87481.0,0.11466833]
[1742856429350,0.006,87482.0,87481.0,0.24946833]
[1742856429553,0.002,87482.0,87481.0,0.26089933]
[1742856429750,0.005,87489.0,87486.0,0.01143]
[1742856430000,0.005,87489.0,87487.0,0.34286264]
[1742856430762,0.005,87489.0,87487.0,0.11425764]
[1742856431241,0.00441455,87488.0,87487.0,0.11425764]
[1742856431582,0.006,87491.0,87489.0,0.240029]
[1742856431789,0.001,87491.0,87490.0,0.11654335]
[1742856431994,0.001,87491.0,87490.0,0.12797235]
[1742856433039,0.002,87491.0,87490.0,0.5700132]
[1742856433241,0.002,87491.0,87490.0,0.24901764]
[1742856433242,0.007,87491.0,87490.0,0.24901764]
[1742856434407,0.006,87491.0,87490.0,0.24901764]
[1742856434605,0.006,87491.0,87490.0,0.11425764]
[1742856434965,0.006,87491.0,87490.0,0.24913764]
[1742856435368,0.01038669,87491.0,87490.0,0.24913764]
[1742856435661,0.01138669,87491.0,87490.0,0.24913764]
[1742856436409,0.01338669,87491.0,87490.0,0.24913764]
[1742856436655,0.01372689,87491.0,87490.0,0.24913764]
[1742856437867,0.01372689,87491.0,87482.0,0.01143]
[1742856437868,0.005,87484.0,87482.0,0.228617]
[1742856438151,0.245048,87482.0,87481.0,0.00041069]
[1742856438341,0.245048,87482.0,87481.0,0.13501069]
[1742856438522,0.24943762,87482.0,87481.0,0.00041069]
[1742856438766,0.23800762,87482.0,87481.0,0.00041069]
[1742856438939,0.00938962,87482.0,87481.0,0.00041069]
[1742856440542,0.00938962,87482.0,87481.0,0.11466833]
[1742856440822,0.005,87489.0,87488.0,0.228602]
[1742856442017,0.005,87489.0,87486.0,0.228608]
[1742856442145,0.005,87489.0,87487.0,0.11425764]
[1742856442554,0.005,87488.0,87487.0,0.11425764]
[1742856443173,0.00939529,87488.0,87487.0,0.11425764]
[1742856443587,0.005,87488.0,87487.0,0.11425764]
[1742856444853,0.006,87488.0,87487.0,0.11425764]
[1742856446260,0.001,87488.0,87487.0,0.34286264]
[1742856450446,0.001,87488.0,87487.0,0.35429264]
[1742856450648,0.001,87488.0,87487.0,0.36883349]
[1742856450766,0.001,87488.0,87487.0,0.74913349]
[1742856451125,0.001,87488.0,87487.0,0.75827783]
[1742856451329,0.001,87488.0,87487.0,1.17630815]
[1742856451870,0.001,87488.0,87487.0,1.21192105]
[1742856452074,0.001,87488.0,87487.0,1.21392105]
[1742856452376,0.0003402,87491.0,87490.0,0.55456685]
[1742856452750,0.0003402,87491.0,87490.0,0.7044354]
[1742856453542,0.0003402,87491.0,87490.0,0.66882449]
[1742856455180,0.0003402,87491.0,87490.0,0.67082449]
[1742856455771,0.0003402,87491.0,87490.0,1.1272344]
[1742856456376,2e-07,87491.0,87490.0,1.1272344]
[1742856457031,0.005,87535.0,87534.0,0.228482]
[1742856457371,0.005,87535.0,87534.0,0.362042]
[1742856458181,0.01,87535.0,87534.0,0.362042]
[1742856458384,0.00512413,87535.0,87534.0,0.48772364]
[1742856459457,0.00812413,87535.0,87534.0,0.48772364]
[1742856459654,0.00812413,87535.0,87534.0,0.47629964]
[1742856460258,0.00312413,87535.0,87534.0,0.47629964]
[1742856460494,0.00712413,87535.0,87534.0,0.47629964]
[1742856460929,0.00712413,87535.0,87534.0,0.48772364]
[1742856467135,0.00712413,87535.0,87534.0,0.34273964]
[1742856467412,0.005,87531.0,87529.0,0.228495]
[1742856467600,0.005,87520.0,87512.0,0.311427]
[1742856467737,0.005,87520.0,87519.0,0.24737764]
[1742856467949,0.005,87520.0,87519.0,0.47589664]
[1742856468360,0.08182413,87535.0,87522.0,0.228513]
[1742856468361,0.005,87523.0,87522.0,0.228513]
[1742856468567,0.005,87523.0,87522.0,0.34277064]
[1742856468972,0.005,87528.0,87527.0,0.2285]
[1742856469177,0.005,87528.0,87527.0,0.34275764]
[1742856470237,0.006,87528.0,87527.0,0.34275764]
[1742856470994,0.008,87528.0,87527.0,0.34275764]
[1742856472232,0.008,87528.0,87527.0,0.47559764]
[1742856474254,0.003,87528.0,87527.0,0.48702264]
[1742856476260,0.003,87528.0,87527.0,0.48682264]
[1742856476834,0.003,87528.0,87527.0,0.48678264]
[1742856477075,0.003,87528.0,87527.0,0.48674264]
[1742856477455,0.003,87528.0,87527.0,0.35418264]
[1742856477656,0.003,87528.0,87527.0,0.48674264]
[1742856478900,0.003,87528.0,87527.0,0.48662264]
[1742856479047,0.003,87528.0,87527.0,1.03014264]
[1742856480517,0.003,87528.0,87527.0,1.05069365]
[1742856480767,0.003,87528.0,87527.0,1.03014264]
[1742856481850,0.003,87528.0,87527.0,0.88627764]
[1742856482046,0.003,87528.0,87527.0,1.01855764]
[1742856482047,0.008,87528.0,87527.0,1.01855764]
[1742856482807,0.008,87528.0,87527.0,0.88627764]
[1742856483008,0.011425,87527.0,87526.0,0.13232]
[1742856483213,0.2766121,87527.0,87526.0,0.13232]
[1742856483415,0.005,87527.0,87526.0,0.13232]
[1742856485227,0.005,87527.0,87523.0,0.228511]
[1742856485428,0.007,87527.0,87520.0,0.228517]
[1742856485670,0.007,87527.0,87521.0,0.228515]
[1742856485869,0.236502,87527.0,87518.0,0.360762]
[1742856486269,0.233502,87527.0,87518.0,0.360762]
[1742856486710,0.235502,87527.0,87518.0,0.360762]
[1742856486884,0.233502,87527.0,87519.0,0.228519]
[1742856487085,0.236502,87527.0,87519.0,0.228519]
[1742856487321,0.236502,87527.0,87520.0,0.228519]
[1742856487525,0.236502,87527.0,87519.0,0.228519]
[1742856487852,0.233502,87527.0,87520.0,0.228519]
[1742856488201,0.007,87527.0,87518.0,0.13224]
[1742856488398,0.007,87527.0,87521.0,0.228515]
[1742856488602,0.005,87527.0,87521.0,0.228515]
[1742856489117,0.01,87527.0,87521.0,0.228515]
[1742856489324,0.008,87527.0,87521.0,0.228515]
[1742856489656,0.007,87527.0,87521.0,0.228515]
[1742856490002,0.01,87527.0,87521.0,0.228515]
[1742856491160,0.01,87527.0,87522.0,0.228513]
[1742856491898,0.008,87527.0,87522.0,0.228513]
[1742856492306,0.008,87527.0,87510.0,0.011427]
[1742856492307,0.005,87507.0,87500.0,0.02242463]
[1742856492511,0.005,87507.0,87506.0,0.24621764]
[1742856492918,0.005,87507.0,87506.0,0.228555]
[1742856493186,0.005,87507.0,87504.0,0.22856]
[1742856493187,0.005,87506.0,87504.0,0.22856]
[1742856493601,0.005,87506.0,87505.0,0.772078]
[1742856494358,0.005,87507.0,87506.0,0.228555]
[1742856494566,0.005,87512.0,87511.0,0.228542]
[1742856495203,0.005,87512.0,87511.0,0.34279964]
[1742856495333,0.005,87512.0,87511.0,0.35422664]
[1742856496140,0.006,87512.0,87511.0,0.35422664]
[1742856496325,0.001,87512.0,87511.0,0.35422664]
[1742856496923,0.001,87512.0,87511.0,0.36876749]
[1742856497633,0.00012411,87519.0,87518.0,0.23995]
[1742856498009,0.00012411,87519.0,87518.0,0.35420764]
[1742856499267,0.00012411,87519.0,87518.0,0.35620764]
[1742856504883,0.00012411,87519.0,87518.0,0.89980764]
[1742856507891,0.00046331,87519.0,87518.0,0.89980764]
[1742856508414,0.00046331,87519.0,87518.0,1.01962164]
[1742856508620,0.00046331,87519.0,87518.0,0.88838164]
[1742856508846,0.00046331,87519.0,87518.0,1.01982164]
[1742856509364,0.00046331,87519.0,87518.0,1.01978164]
[1742856509575,0.00046331,87519.0,87518.0,0.47618164]
[1742856513193,0.00046331,87519.0,87518.0,0.34478164]
[1742856513401,0.00046331,87519.0,87518.0,0.47594164]
[1742856517960,0.23398431,87519.0,87518.0,0.002]
[1742856518089,0.35012204,87519.0,87518.0,0.002]
[1742856518723,0.29471031,87519.0,87518.0,0.002]
[1742856519037,0.228528,87517.0,87510.0,0.359545]
[1742856519473,0.22853,87516.0,87508.0,0.228549]
[1742856519607,0.228524,87518.0,87511.0,0.22854]
[1742856520013,0.30271031,87519.0,87487.0,0.5436]
[1742856520014,0.005,87497.0,87487.0,0.5436]
[1742856520215,0.005,87492.0,87487.0,0.5436]
[1742856520442,0.005,87494.0,87493.0,0.228589]
[1742856520797,0.005,87494.0,87493.0,0.34284664]
[1742856521327,0.005,87494.0,87493.0,0.11425764]
[1742856521532,0.00512404,87494.0,87493.0,0.11425764]
[1742856522161,0.005,87492.0,87491.0,0.0001696]
[1742856522360,0.005,87492.0,87491.0,0.1310496]
[1742856522523,0.005,87493.0,87492.0,0.228592]
[1742856523370,0.005,87493.0,87491.0,0.3606036]
[1742856523600,0.005,87493.0,87491.0,0.3596036]
[1742856524004,0.005,87493.0,87491.0,0.2287636]
[1742856524206,0.245021,87492.0,87491.0,0.0001696]
[1742856524402,0.325221,87492.0,87491.0,0.0001696]
[1742856525487,0.326221,87492.0,87491.0,0.0001696]
[1742856526324,0.328221,87492.0,87491.0,0.0001696]
[1742856527350,0.003,87492.0,87491.0,0.2287636]
[1742856527670,0.003,87492.0,87491.0,0.35673596]
[1742856527846,0.003,87492.0,87491.0,0.35445024]
[1742856528702,0.001,87492.0,87491.0,0.35445024]
[1742856528875,0.00012404,87494.0,87493.0,0.240018]
[1742856529013,0.00012404,87494.0,87493.0,0.48523564]
[1742856529222,0.00012404,87494.0,87493.0,0.56123564]
[1742856529735,0.00012404,87494.0,87493.0,0.87090319]
[1742856529933,0.00012404,87494.0,87493.0,0.87577649]
[1742856530154,0.00112404,87494.0,87493.0,0.87577649]
[1742856531444,0.00012404,87494.0,87493.0,0.87577649]
[1742856532448,0.00012404,87494.0,87493.0,0.87677649]
[1742856533535,0.00012404,87494.0,87493.0,1.42045649]
[1742856534561,0.00012404,87494.0,87493.0,1.84015649]
[1742856537325,0.00012404,87494.0,87493.0,1.63319649]
[1742856537512,0.00012404,87494.0,87493.0,1.76387649]
[1742856544358,0.00012404,87494.0,87493.0,1.30722664]
[1742856544532,0.00012404,87494.0,87493.0,1.44909564]
[1742856545558,0.00046324,87494.0,87493.0,1.44909564]
[1742856556982,0.00046324,87494.0,87493.0,1.44853564]
[1742856558094,0.00046324,87494.0,87493.0,1.02883564]
[1742856558268,0.00046324,87494.0,87493.0,1.02875564]
[1742856560220,0.00046324,87494.0,87493.0,0.89895564]
[1742856560422,0.00046324,87494.0,87493.0,1.02867564]
[1742856560621,0.00546324,87494.0,87493.0,0.54468]
[1742856562051,0.00546324,87494.0,87493.0,0.54458]
[1742856562270,0.00746324,87494.0,87491.0,0.2287636]
[1742856562781,0.00846324,87494.0,87491.0,0.2287636]
[1742856563284,0.00846324,87494.0,87493.0,0.228589]
[1742856563485,0.00546324,87494.0,87492.0,0.228592]
[1742856563716,0.00646324,87494.0,87491.0,0.2287636]
[1742856564012,0.00846324,87494.0,87491.0,0.0001696]
[1742856564390,0.00646324,87494.0,87491.0,0.0001696]
[1742856564590,0.00646324,87494.0,87492.0,0.22859]
[1742856564797,0.00146324,87494.0,87493.0,0.34284664]
[1742856565091,0.00146324,87494.0,87493.0,0.35427564]
[1742856565293,0.00246324,87494.0,87493.0,0.35427564]
[1742856565674,0.00346324,87494.0,87493.0,0.35427564]
[1742856565903,0.00246324,87494.0,87493.0,0.35427564]
[1742856566305,0.00246324,87494.0,87493.0,0.35527564]
[1742856566834,0.00046324,87494.0,87493.0,0.35527564]
[1742856567008,0.00246324,87494.0,87493.0,0.35527564]
[1742856567210,0.00246324,87494.0,87493.0,0.89899564]
[1742856567612,0.00046324,87494.0,87493.0,0.89899564]
[1742856569828,0.00046324,87494.0,87493.0,1.31869564]
[1742856573172,0.00046324,87494.0,87493.0,1.43662664]
[1742856574396,0.00046324,87494.0,87493.0,1.44805564]
[1742856574616,0.00046324,87494.0,87493.0,1.44813564]
[1742856576725,0.00046324,87494.0,87493.0,0.90441564]
[1742856578841,0.12306324,87494.0,87493.0,0.76354664]
[1742856579041,0.00046324,87494.0,87493.0,0.76354664]
[1742856579239,0.00046324,87494.0,87493.0,0.77497564]
[1742856579919,0.00046324,87494.0,87493.0,0.78951649]
[1742856581479,0.00046324,87494.0,87493.0,0.78968609]
[1742856590476,0.00046324,87494.0,87493.0,1.16788609]
[1742856590878,0.00046324,87494.0,87493.0,1.20358774]
[1742856592615,0.00046324,87494.0,87493.0,1.20258774]
[1742856593012,0.00046324,87494.0,87493.0,1.20458774]
[1742856593215,2.4e-07,87494.0,87493.0,1.20458774]
[1742856593343,2.4e-07,87494.0,87493.0,1.16888609]
[1742856593538,0.0003392,87519.0,87518.0,0.23995]
[1742856593745,0.0003392,87519.0,87518.0,0.48379743]
[1742856594338,0.0003392,87519.0,87518.0,0.4940123]
[1742856594688,0.0043392,87519.0,87518.0,0.4940123]
[1742856595061,0.0043392,87519.0,87518.0,0.5040123]
[1742856595271,0.0043392,87519.0,87518.0,0.48233143]
[1742856595457,0.0043392,87519.0,87518.0,0.49375743]
[1742856595969,0.0063392,87519.0,87518.0,0.49375743]
[1742856596586,0.0023392,87519.0,87518.0,0.49375743]
[1742856596933,0.0063392,87519.0,87518.0,0.49375743]
[1742856597248,0.0063392,87519.0,87518.0,0.50357844]
[1742856597405,0.0063392,87519.0,87518.0,0.49375743]
[1742856598870,0.0063392,87519.0,87518.0,0.36463743]
[1742856599088,0.0063392,87519.0,87518.0,0.90337719]
[1742856600296,0.0003392,87519.0,87518.0,0.90337719]
[1742856600499,0.0033392,87519.0,87518.0,0.90337719]
[1742856600701,0.0843392,87519.0,87518.0,0.53438719]
[1742856600908,0.38970512,87519.0,87518.0,0.00042979]
[1742856601080,0.3784862,87519.0,87518.0,0.00042979]
[1742856601849,0.3754862,87519.0,87518.0,0.00042979]
[1742856602318,0.3814862,87519.0,87518.0,0.00042979]
[1742856602859,0.3834862,87519.0,87518.0,0.00042979]
[1742856603066,0.49307408,87519.0,87518.0,0.00042979]
[1742856603262,0.79307408,87519.0,87518.0,0.00042979]
[1742856603477,0.364896,87501.0,87500.0,0.01]
[1742856603699,0.364896,87501.0,87500.0,0.01041069]
[1742856603900,0.369896,87501.0,87500.0,0.01041069]
[1742856604380,0.45760486,87501.0,87500.0,0.01041069]
[1742856605240,0.45960486,87501.0,87500.0,0.01041069]
[1742856605438,0.371896,87501.0,87500.0,0.01041069]
[1742856606926,1.828909,87501.0,87500.0,0.01041069]
[1742856607080,1.826909,87501.0,87500.0,0.01041069]
[1742856607281,1.813839,87501.0,87500.0,0.01041069]
[1742856607482,1.817839,87501.0,87500.0,0.01041069]
[1742856608246,1.90920864,87501.0,87500.0,0.01041069]
[1742856608606,1.794951,87501.0,87500.0,0.01041069]
[1742856608989,2.094951,87501.0,87500.0,0.01041069]
[1742856609198,0.674613,87495.0,87494.0,6e-07]
[1742856609362,0.674613,87495.0,87493.0,2e-07]
[1742856609363,2.810777,87494.0,87493.0,2e-07]
[1742856609562,0.67034428,87494.0,87493.0,2e-07]
[1742856611083,0.67534428,87494.0,87493.0,2e-07]
[1742856611714,0.69323827,87494.0,87493.0,2e-07]
[1742856611939,0.69823827,87494.0,87493.0,2e-07]
[1742856612319,0.68034428,87494.0,87493.0,2e-07]
[1742856612751,0.451829,87494.0,87493.0,2e-07]
[1742856612949,0.56608664,87494.0,87493.0,2e-07]
[1742856613251,0.441829,87492.0,87491.0,0.0001696]
[1742856613447,1.99063864,87492.0,87491.0,0.0001696]
[1742856614015,2.40753864,87492.0,87491.0,0.0001696]
[1742856614229,1.20142564,87492.0,87491.0,0.0001696]
[1742856614428,0.858729,87492.0,87491.0,0.0001696]
[1742856614602,0.863729,87492.0,87491.0,0.0001696]
[1742856616050,1.092321,87492.0,87491.0,0.0001696]
[1742856616539,1.097321,87492.0,87491.0,0.0001696]
[1742856616733,1.21157864,87492.0,87491.0,0.0001696]
[1742856617095,1.097321,87492.0,87491.0,0.0001696]
[1742856619007,0.660492,87492.0,87491.0,0.0001696]
[1742856619561,0.255021,87492.0,87491.0,0.0001696]
[1742856620146,0.250021,87492.0,87491.0,0.0001696]
[1742856621501,0.255021,87492.0,87491.0,0.0001696]
[1742856622056,0.250021,87492.0,87491.0,0.0001696]
[1742856622464,0.245021,87492.0,87491.0,0.0001696]
[1742856622674,0.250021,87492.0,87491.0,0.0001696]
[1742856622870,0.255021,87492.0,87491.0,0.0001696]
[1742856623714,0.015,87492.0,87491.0,0.2287636]
[1742856624686,0.01,87492.0,87491.0,0.2287636]
[1742856625017,0.013,87492.0,87491.0,0.2287636]
[1742856626805,0.015,87492.0,87491.0,0.2287636]
[1742856631519,0.01,87492.0,87491.0,0.35445024]
[1742856631743,0.01,87492.0,87491.0,0.43125024]
[1742856632439,0.007,87492.0,87491.0,0.43125024]
[1742856632585,0.0003392,87493.0,87492.0,0.286321]
[1742856632782,0.0003392,87493.0,87492.0,0.8202784]
[1742856633041,0.0003392,87493.0,87492.0,1.14504532]
[1742856634988,0.0003392,87493.0,87492.0,0.9031384]
[1742856636641,0.0003392,87493.0,87492.0,0.91359515]
[1742856637589,0.0003392,87493.0,87492.0,0.928136]
[1742856637788,0.0003392,87493.0,87492.0,1.010336]
[1742856640281,0.0003392,87493.0,87492.0,1.554096]
[1742856643685,0.0003392,87493.0,87492.0,1.54363925]
[1742856643895,0.0003392,87493.0,87492.0,1.3177384]
[1742856644289,0.0003392,87493.0,87492.0,1.4466984]
[1742856644766,0.0003392,87493.0,87492.0,1.3177384]
[1742856644966,0.0003392,87493.0,87492.0,1.4466984]
[1742856645180,0.0003392,87493.0,87492.0,1.3177384]
[1742856645350,0.0003392,87493.0,87492.0,1.4468584]
[1742856646346,0.0003392,87493.0,87492.0,1.4353894]
[1742856648934,0.0003392,87493.0,87492.0,1.01568964]
[1742856649383,0.0003392,87493.0,87492.0,0.78709764]
[1742856649991,0.245021,87492.0,87491.0,0.1291296]
[1742856650223,0.37488528,87492.0,87491.0,0.0001696]
[1742856650842,0.324021,87492.0,87491.0,0.0001696]
[1742856651821,0.0003392,87493.0,87492.0,0.228592]
[1742856652025,0.0003392,87493.0,87492.0,0.34284964]
[1742856652424,0.0003392,87493.0,87492.0,0.11425764]
[1742856652677,0.0003392,87493.0,87492.0,0.34284964]
[1742856656292,0.0003392,87493.0,87492.0,0.35427864]
[1742856660358,0.0003392,87493.0,87492.0,0.34284964]
[1742856663922,0.0003392,87493.0,87492.0,0.35427864]
[1742856664130,0.0003392,87493.0,87492.0,0.35444824]
[1742856664487,0.0003392,87493.0,87492.0,0.36898909]
[1742856664726,0.0003392,87493.0,87492.0,0.44848909]
[1742856665792,2e-07,87493.0,87492.0,1.16818885]
[1742856665991,2e-07,87493.0,87492.0,1.17679461]
[1742856666395,2e-07,87493.0,87492.0,1.18723041]
[1742856667018,8.4e-07,87495.0,87494.0,0.240016]
[1742856667220,8.4e-07,87495.0,87494.0,0.66881449]
[1742856667743,8.4e-07,87495.0,87494.0,1.23931425]
[1742856667941,8.4e-07,87495.0,87494.0,1.27495413]
[1742856668699,8.4e-07,87495.0,87494.0,1.29801957]
[1742856668977,8.4e-07,87495.0,87494.0,1.29901957]
[1742856669389,8.4e-07,87495.0,87494.0,1.39901957]
[1742856670137,4e-08,87519.0,87518.0,0.66805]
[1742856670338,4.14e-05,87519.0,87518.0,1.88894825]
[1742856671942,4.14e-05,87519.0,87518.0,1.88994825]
[1742856672146,4.14e-05,87519.0,87518.0,1.7473474]
[1742856673103,4.14e-05,87519.0,87518.0,1.78441]
[1742856673983,4.14e-05,87519.0,87518.0,1.7477074]
[1742856675201,4.14e-05,87519.0,87518.0,0.65897764]
[1742856675406,0.0050414,87519.0,87518.0,1.01666164]
[1742856675605,4.14e-05,87519.0,87518.0,1.02808764]
[1742856685253,4.14e-05,87519.0,87518.0,1.04262849]
[1742856687080,4.14e-05,87519.0,87518.0,1.46232825]
[1742856687686,4.14e-05,87519.0,87518.0,1.46249785]
[1742856691429,4.14e-05,87519.0,87518.0,1.47091727]
[1742856692750,4.14e-05,87519.0,87518.0,1.77091727]
[1742856698530,4.14e-05,87519.0,87518.0,1.80654749]
[1742856699184,4.14e-05,87519.0,87518.0,1.77091727]
[1742856700402,4.14e-05,87519.0,87518.0,1.80656738]
[1742856701855,4.14e-05,87519.0,87518.0,1.77091727]
[1742856702250,4.14e-05,87519.0,87518.0,1.80657749]
[1742856704745,4.14e-05,87519.0,87518.0,1.80581749]
[1742856713581,4.14e-05,87519.0,87518.0,1.80553749]
[1742856714607,4.14e-05,87519.0,87518.0,1.66287664]
[1742856714807,4.14e-05,87519.0,87518.0,1.79095664]
[1742856715009,4.14e-05,87519.0,87518.0,1.80549749]
[1742856715254,4.14e-05,87519.0,87518.0,1.79095664]
[1742856715432,4.14e-05,87519.0,87518.0,1.67741749]
[1742856715663,4.14e-05,87519.0,87518.0,1.80561749]
[1742856732189,4.14e-05,87519.0,87518.0,1.67741749]
[1742856732432,4.14e-05,87519.0,87518.0,1.80541749]
[1742856733773,4.14e-05,87519.0,87518.0,1.67741749]
[1742856733987,4.14e-05,87519.0,87518.0,1.80537749]
[1742856736947,4.14e-05,87519.0,87518.0,1.078847]
[1742856736948,0.1334414,87519.0,87518.0,1.078847]
[1742856737149,0.1334414,87519.0,87518.0,1.206687]
[1742856737364,0.1334414,87519.0,87518.0,1.307371]
[1742856737596,0.1334414,87519.0,87518.0,1.435331]
[1742856737976,0.1334414,87519.0,87518.0,1.434331]
[1742856739944,0.1334414,87519.0,87518.0,1.01463124]
[1742856741960,0.1334414,87519.0,87518.0,1.02605724]
[1742856742490,0.1334414,87519.0,87518.0,1.02589724]
[1742856742639,0.1334414,87519.0,87518.0,1.01447124]
[1742856745689,0.1334414,87519.0,87518.0,1.02589724]
[1742856747336,0.1334414,87519.0,87518.0,1.01447124]
[1742856748042,0.1334414,87519.0,87518.0,1.02589724]
[1742856751113,0.1334414,87519.0,87518.0,1.01447124]
[1742856751725,0.1334414,87519.0,87518.0,1.01423124]
[1742856753559,0.1334414,87519.0,87518.0,1.01419124]
[1742856754890,0.3733884,87519.0,87518.0,0.65814724]
[1742856755491,0.1334414,87519.0,87518.0,0.11442724]
[1742856756436,0.1334414,87519.0,87518.0,0.34295124]
[1742856756649,0.15453586,87519.0,87518.0,0.34295124]
[1742856757300,0.15453586,87519.0,87518.0,0.11442724]
[1742856757957,0.1334414,87519.0,87518.0,0.11442724]
[1742856758342,0.1334414,87519.0,87518.0,0.34295124]
[1742856759876,0.1334414,87519.0,87518.0,0.35437724]
[1742856761097,0.1334414,87519.0,87518.0,0.34295124]
[1742856761845,0.0050414,87519.0,87518.0,0.34295124]
[1742856762303,0.0050414,87519.0,87518.0,0.35437724]
[1742856762576,4.14e-05,87519.0,87518.0,0.35437724]
[1742856766579,4.14e-05,87519.0,87518.0,0.36891809]
[1742856767955,4.14e-05,87519.0,87518.0,0.3775271]
[1742856769189,4.14e-05,87519.0,87518.0,0.79722686]
[1742856770824,4.14e-05,87519.0,87518.0,0.82032605]
[1742856776935,4.14e-05,87519.0,87518.0,0.94756605]
[1742856778018,4.14e-05,87519.0,87518.0,1.24756605]
[1742856778219,4.14e-05,87519.0,87518.0,1.2831853]
[1742856779254,4.14e-05,87519.0,87518.0,1.2861853]
[1742856779662,4.14e-05,87519.0,87518.0,1.25056605]
[1742856779868,4.14e-05,87519.0,87518.0,1.25156605]
[1742856790581,4.14e-05,87519.0,87518.0,1.79504605]
[1742856791350,4.14e-05,87519.0,87518.0,1.83064957]
[1742856791550,4.14e-05,87519.0,87518.0,1.83060957]
[1742856798845,6e-07,87528.0,87527.0,0.55446585]
[1742856799046,6e-07,87528.0,87527.0,1.12402677]
[1742856799495,6e-07,87528.0,87527.0,1.24902677]
[1742856799693,0.0776,87550.0,87549.0,0.239865]
[1742856799896,0.0776,87550.0,87549.0,0.91556265]
[1742856800071,0.0492,87553.0,87552.0,0.239856]
[1742856800300,0.0492,87553.0,87552.0,0.36865449]
[1742856801950,0.0522,87553.0,87552.0,0.36865449]
[1742856802560,0.0542,87553.0,87552.0,0.37925186]
[1742856803216,0.0545392,87553.0,87552.0,0.37925186]
[1742856803386,0.0545392,87553.0,87552.0,0.51372601]
[1742856803735,0.0545392,87553.0,87552.0,0.53427702]
[1742856803854,0.0545392,87553.0,87552.0,0.51091455]
[1742856804254,0.05466329,87553.0,87552.0,0.93061371]
[1742856805051,0.05166329,87553.0,87552.0,0.9283676]
[1742856805659,0.05266329,87553.0,87552.0,0.9283676]
[1742856807108,0.05266329,87553.0,87552.0,0.91777023]
[1742856808701,0.05266329,87553.0,87552.0,0.92853834]
[1742856809528,0.00346329,87553.0,87552.0,0.92853834]
[1742856811056,0.00046329,87553.0,87552.0,0.92853834]
[1742856811275,0.00146329,87553.0,87552.0,0.92853834]
[1742856811492,0.00346329,87553.0,87552.0,0.92853834]
[1742856815761,0.00346329,87553.0,87552.0,0.50883918]
[1742856816068,0.00346329,87553.0,87552.0,0.50900878]
[1742856822014,0.00346329,87553.0,87552.0,0.49824067]
[1742856822221,0.00346329,87553.0,87552.0,0.11442724]
[1742856822222,0.13556329,87553.0,87552.0,0.11442724]
[1742856822420,0.13556329,87553.0,87552.0,0.34286224]
[1742856822863,0.13556329,87553.0,87552.0,0.11442724]
[1742856823075,0.13556329,87553.0,87552.0,0.34286224]
[1742856825080,0.37541729,87553.0,87552.0,0.11442724]
[1742856825743,0.13556329,87553.0,87552.0,0.11442724]
[1742856825921,0.13556329,87553.0,87552.0,0.34286224]
[1742856831433,0.13556329,87553.0,87552.0,0.2286046]
[1742856831632,0.17303685,87553.0,87552.0,0.2286046]
[1742856836366,0.13556329,87553.0,87552.0,0.2286046]
[1742856838618,0.13556329,87553.0,87552.0,0.35428324]
[1742856838619,0.00846329,87553.0,87552.0,0.35428324]
[1742856839421,0.00346329,87553.0,87552.0,0.35428324]
[1742856844634,0.00346329,87553.0,87552.0,0.65428324]
[1742856846202,0.00346329,87553.0,87552.0,0.66882409]
[1742856857834,0.00346329,87553.0,87552.0,1.21214409]
[1742856872170,0.00346329,87553.0,87552.0,1.33930409]